bitfinex/quotes_ETHUSD_20250126
["timestamp","ask_amount","ask_price","bid_price","bid_amount"]
[1737872915679,0.03205511,3344.5,3344.3,2.99016]
[1737872915909,0.8137,3344.8,3344.3,2.99016]
[1737872916103,0.03201296,3344.4,3344.3,2.99016]
[1737872916308,0.8137,3344.8,3344.3,2.99016]
[1737872916517,0.03201296,3344.4,3344.3,2.99016]
[1737872916825,0.8137,3344.8,3344.3,2.99016]
[1737872917046,0.03201296,3344.4,3344.3,2.99016]
[1737872917335,0.8137,3344.8,3344.3,2.99016]
[1737872917481,0.03201296,3344.4,3344.3,2.99016]
[1737872917681,0.8137,3344.8,3344.4,2.99005]
[1737872921026,0.03737295,3344.7,3344.2,2.99016]
[1737872921186,1.19776829,3344.8,3344.2,2.99016]
[1737872921623,4.18748829,3344.8,3344.2,2.99016]
[1737872921885,0.79,3344.7,3344.2,2.99016]
[1737872923827,0.03101432,3344.6,3344.2,2.99016]
[1737872924252,0.03101432,3344.6,3344.2,2.99018]
[1737872927016,0.03101432,3344.6,3344.3,2.99015]
[1737872936075,0.06838999,3344.6,3344.3,2.99015]
[1737872936231,0.03101432,3344.6,3344.3,2.99015]
[1737872940850,0.06839001,3344.6,3344.3,2.99015]
[1737872955190,0.03101432,3344.6,3344.3,2.99015]
[1737872958304,0.06839,3344.6,3344.3,2.99015]
[1737872965748,0.03101432,3344.6,3344.3,2.99015]
[1737872968049,0.06838995,3344.6,3344.3,2.99015]
[1737872968251,0.49159877,3344.6,3343.9,0.8233]
[1737872968459,0.7638,3344.4,3343.8,2.99053]
[1737872968753,0.03737956,3344.3,3343.8,2.99053]
[1737872968939,0.06709206,3344.3,3343.8,2.99053]
[1737872969148,0.7638,3344.1,3343.8,2.99053]
[1737872969533,0.02958603,3344.0,3343.8,2.99053]
[1737872973764,0.02958603,3344.0,3343.9,2.99052]
[1737872974352,0.7804,3344.5,3344.0,2.99041]
[1737872981091,0.7585,3344.4,3343.8,2.99053]
[1737872981256,0.7585,3344.2,3343.8,2.99053]
[1737872981456,0.7585,3344.2,3343.6,2.99077]
[1737872983676,0.02854062,3344.1,3343.6,2.99077]
[1737872984192,0.02854062,3344.1,3343.7,2.99069]
[1737872986781,0.02854062,3344.1,3343.9,2.9905]
[1737872993486,0.02854062,3344.1,3343.7,2.99069]
[1737872994106,0.02854062,3344.1,3343.8,2.99059]
[1737872997172,0.02854062,3344.1,3343.7,2.99069]
[1737872997379,0.02854062,3344.1,3343.9,2.9905]
[1737872998615,0.02854062,3344.1,3344.0,2.99043]
[1737872998822,0.02854062,3344.1,3344.0,3.78413]
[1737872998988,5.31,3344.6,3344.3,2.9901]
[1737872999191,0.8088,3344.7,3344.3,2.9901]
[1737873000121,0.8088,3344.9,3344.6,2.98989]
[1737873000269,0.8088,3344.9,3344.7,2.98974]
[1737873000615,5.31,3345.0,3344.6,2.98989]
[1737873002777,0.0373711,3345.0,3344.6,2.98989]
[1737873003617,0.0373711,3345.0,3344.4,3.78376]
[1737873003792,0.8066,3344.9,3344.4,3.78376]
[1737873005694,0.8066,3344.9,3344.5,2.98997]
[1737873006423,0.8066,3344.9,3344.6,2.98987]
[1737873006661,8.2992,3345.4,3344.5,2.98997]
[1737873006809,8.2992,3345.4,3344.8,2.98964]
[1737873006810,0.8066,3345.3,3344.8,2.98964]
[1737873008508,0.8066,3345.5,3344.8,0.8276]
[1737873008820,0.8066,3345.5,3344.9,2.98956]
[1737873009022,0.8066,3345.5,3345.0,2.98952]
[1737873009331,0.8066,3345.8,3345.0,2.98952]
[1737873009626,0.8066,3345.8,3345.1,0.381712]
[1737873010130,0.8066,3345.4,3344.5,3.81756]
[1737873010317,2.98928,3345.3,3344.6,2.98986]
[1737873013323,2.98928,3345.3,3344.7,2.98977]
[1737873013489,0.8066,3345.4,3344.8,2.9897]
[1737873014023,3.79579,3345.4,3344.8,2.9897]
[1737873014270,3.79579,3345.4,3344.5,2.98996]
[1737873014271,2.98944,3345.2,3344.5,2.98996]
[1737873014466,0.8054,3345.0,3344.5,2.98996]
[1737873017773,0.03265646,3344.9,3344.5,2.98996]
[1737873018020,0.8054,3345.0,3344.5,2.98996]
[1737873018477,2.9896,3345.0,3344.3,2.99009]
[1737873018643,0.84277113,3344.9,3344.2,2.99019]
[1737873018972,0.84277113,3344.9,3344.0,2.99041]
[1737873018973,0.8054,3344.6,3344.0,2.99041]
[1737873019478,0.8054,3344.6,3344.1,2.99027]
[1737873024219,0.8054,3344.6,3344.2,2.99023]
[1737873025320,0.8054,3344.6,3344.0,0.7842]
[1737873025321,0.8054,3344.6,3344.0,3.77455]
[1737873025546,0.04380947,3344.5,3344.0,3.77455]
[1737873025678,0.8054,3344.6,3344.0,2.99035]
[1737873025887,3.79531,3344.6,3344.0,2.99035]
[1737873026122,5.12436641,3344.6,3344.0,2.99035]
[1737873029988,3.79531,3344.6,3344.0,2.99035]
[1737873031923,0.8054,3344.6,3344.0,2.99035]
[1737873033827,0.8054,3344.6,3344.1,2.9903]
[1737873037324,0.8054,3344.6,3344.2,2.99024]
[1737873040428,0.8054,3344.6,3344.0,2.99039]
[1737873043030,0.8054,3344.6,3343.9,2.99051]
[1737873043236,0.8054,3344.6,3344.1,2.99032]
[1737873045445,0.8054,3344.6,3343.9,2.99051]
[1737873045606,0.8054,3344.6,3344.4,2.99007]
[1737873045806,0.8054,3344.6,3344.4,2.99001]
[1737873056773,0.8054,3344.6,3344.2,2.99022]
[1737873060771,0.8054,3344.6,3344.3,2.99015]
[1737873062937,2.98964,3344.9,3344.3,3.79995]
[1737873063257,3.78072444,3345.0,3344.3,3.79995]
[1737873063467,5.31,3345.2,3344.7,2.98973]
[1737873063639,0.7538,3345.2,3344.7,2.98973]
[1737873063966,0.7538,3345.2,3344.5,2.98997]
[1737873064183,0.7538,3345.2,3344.6,2.98988]
[1737873065571,0.7538,3345.2,3344.4,2.99005]
[1737873065762,0.7538,3345.2,3344.7,2.98979]
[1737873065961,0.03261306,3345.1,3344.8,0.8173]
[1737873066165,0.03261306,3345.1,3344.9,2.9896]
[1737873066366,0.759,3345.7,3345.1,2.98937]
[1737873066903,0.02833386,3345.6,3345.1,2.98937]
[1737873067250,0.02833386,3345.6,3344.9,2.9896]
[1737873067466,0.02833386,3345.6,3344.9,3.669268]
[1737873068369,0.02833386,3345.6,3344.9,0.679668]
[1737873068547,0.02833386,3345.6,3345.0,2.98951]
[1737873071054,0.04018021,3345.6,3345.0,2.98951]
[1737873071362,0.02823188,3345.6,3345.0,2.98951]
[1737873071577,0.02823188,3345.6,3345.0,3.7371358]
[1737873072187,3.01723188,3345.6,3345.0,3.7371358]
[1737873073583,2.989,3345.6,3345.0,3.7371358]
[1737873074492,0.7683,3345.5,3344.5,1.23327831]
[1737873074790,2.98963,3344.9,3344.2,2.99019]
[1737873075390,3.02700349,3344.9,3344.2,2.99019]
[1737873075591,2.98963,3344.9,3344.3,2.99014]
[1737873075794,2.98963,3344.9,3344.3,4.492425]
[1737873077451,2.98963,3344.9,3344.3,2.99014]
[1737873081500,0.7683,3345.0,3344.4,2.99005]
[1737873085214,0.7683,3345.0,3344.5,2.9899]
[1737873093228,0.7683,3345.0,3344.7,2.98973]
[1737873093531,0.7683,3345.0,3344.8,2.98968]
[1737873095801,0.8011,3345.4,3344.8,2.98968]
[1737873096130,0.83846765,3345.4,3345.0,2.98952]
[1737873096637,0.8011,3345.4,3345.0,2.98952]
[1737873096806,0.8011,3345.4,3344.8,2.98968]
[1737873098227,0.83846765,3345.4,3344.8,2.98968]
[1737873100033,3.82766765,3345.4,3344.8,2.98968]
[1737873100842,3.82766765,3345.4,3344.6,2.98987]
[1737873101035,0.83846765,3345.4,3344.6,0.376307]
[1737873101199,2.98927,3345.3,3344.7,2.98979]
[1737873102333,3.02663765,3345.3,3344.5,3.76317]
[1737873102537,0.8011,3345.2,3344.5,3.76311]
[1737873103239,0.8011,3345.2,3344.5,2.98991]
[1737873103438,0.8011,3344.8,3344.1,2.99027]
[1737873103731,0.8011,3344.8,3344.2,2.99024]
[1737873106624,0.8011,3344.8,3344.0,5.99042]
[1737873106956,0.8011,3344.8,3344.3,2.99015]
[1737873110411,0.8011,3344.8,3344.1,2.99033]
[1737873110617,0.8011,3344.8,3344.4,2.99006]
[1737873113386,0.8011,3344.8,3344.2,2.99021]
[1737873113685,0.83847349,3344.7,3344.1,2.99033]
[1737873114685,0.754,3344.6,3343.9,2.99051]
[1737873114843,0.754,3344.4,3343.9,2.99051]
[1737873115042,3.74409,3344.4,3343.7,2.99069]
[1737873115279,0.754,3344.3,3343.7,2.99069]
[1737873116676,0.79137994,3344.3,3343.7,2.99069]
[1737873117559,0.754,3344.2,3343.7,2.99069]
[1737873118175,0.03737994,3344.1,3343.5,2.99086]
[1737873118360,0.03737994,3344.1,3343.3,2.99103]
[1737873118361,0.754,3343.8,3343.3,2.99103]
[1737873118688,0.03738547,3343.7,3343.1,3.30241823]
[1737873118985,3.78207565,3343.7,3343.1,2.99122]
[1737873119162,3.74469,3343.7,3343.1,2.99122]
[1737873121050,0.754,3343.6,3343.1,2.99122]
[1737873121849,3.0282777,3343.5,3342.7,3.30277666]
[1737873122055,0.754,3343.4,3342.7,3.30277666]
[1737873122377,0.79139051,3343.3,3342.7,2.99151]
[1737873123170,0.754,3343.3,3342.7,2.99151]
[1737873123593,0.754,3343.3,3342.2,0.60012144]
[1737873123594,5.31,3343.8,3343.1,2.99123]
[1737873123907,0.754,3343.7,3343.2,2.99109]
[1737873126102,0.754,3343.7,3343.0,2.99131]
[1737873126308,3.74471,3343.7,3343.0,2.99131]
[1737873126810,3.0281979,3343.6,3343.0,2.99131]
[1737873126991,0.7836,3343.5,3342.8,2.99149]
[1737873127205,0.03738793,3343.4,3342.8,2.99149]
[1737873127405,0.7836,3342.9,3341.8,0.7605]
[1737873127586,0.7836,3342.9,3342.2,2.99195]
[1737873127913,0.03739528,3342.8,3342.2,2.99195]
[1737873128091,3.77503,3342.9,3342.2,2.99195]
[1737873129602,0.7836,3342.9,3342.3,2.99194]
[1737873130800,0.7836,3342.9,3342.1,2.99211]
[1737873131132,0.7836,3342.9,3342.4,2.99179]
[1737873131718,0.7836,3342.9,3342.4,5.98359]
[1737873132023,0.7836,3342.9,3342.4,2.99179]
[1737873133126,5.31,3343.1,3342.3,0.7605]
[1737873133324,6.0936,3343.1,3342.7,2.99155]
[1737873133622,0.7836,3343.1,3342.7,2.99155]
[1737873136514,0.7836,3343.1,3342.4,2.99186]
[1737873136825,0.7836,3343.1,3342.7,2.99153]
[1737873137033,0.7836,3343.1,3342.8,2.99145]
[1737873137488,0.7836,3343.1,3342.7,2.99153]
[1737873138436,0.7836,3343.1,3342.8,2.99146]
[1737873139132,0.7683,3343.4,3343.0,2.99132]
[1737873139336,0.7683,3343.4,3343.1,2.99121]
[1737873141497,0.7683,3343.4,3343.0,0.598278]
[1737873141701,0.80568753,3343.4,3342.6,2.99167]
[1737873141894,0.7683,3343.3,3342.4,2.99184]
[1737873142094,0.7683,3342.9,3342.4,2.99184]
[1737873145424,2.99142,3342.9,3342.2,2.99202]
[1737873145641,0.8242,3342.8,3342.2,2.99202]
[1737873146017,3.81571,3342.8,3342.2,2.99202]
[1737873146207,0.8242,3342.8,3342.2,2.99202]
[1737873148348,0.86159605,3342.8,3342.2,2.99202]
[1737873148820,1.25282166,3342.8,3342.2,2.99202]
[1737873149010,0.8242,3342.7,3342.2,2.99202]
[1737873149209,0.8242,3342.5,3342.2,2.99202]
[1737873149506,0.8242,3342.5,3342.1,2.99209]
[1737873150369,0.8242,3342.5,3341.8,2.99237]
[1737873150511,0.8242,3342.5,3341.8,2.99231]
[1737873150848,0.86159988,3342.5,3341.8,2.99231]
[1737873151214,0.86159988,3342.5,3341.6,2.99252]
[1737873151440,0.86159988,3342.5,3341.9,2.99229]
[1737873151839,0.8242,3342.5,3341.9,2.99229]
[1737873152847,0.8242,3342.5,3342.0,2.99218]
[1737873153051,0.8242,3342.5,3341.9,2.99229]
[1737873153641,0.86159986,3342.4,3341.9,2.99229]
[1737873153847,0.7711,3342.3,3341.7,2.99242]
[1737873155559,0.7711,3342.3,3341.6,2.99249]
[1737873155847,0.7711,3342.3,3341.8,2.99235]
[1737873157737,0.80850148,3342.3,3341.8,2.99235]
[1737873159621,0.7711,3342.3,3341.8,2.99235]
[1737873165064,0.7711,3342.3,3341.2,4.12824093]
[1737873165253,0.7711,3342.3,3342.0,2.9922]
[1737873166240,0.7711,3342.3,3341.7,2.9924]
[1737873166441,0.7711,3342.3,3341.8,2.99238]
[1737873166639,0.7711,3342.3,3341.9,2.99226]
[1737873169478,0.7711,3342.3,3342.0,2.99221]
[1737873175283,0.7711,3342.3,3341.9,2.9923]
[1737873177803,0.7711,3342.3,3342.0,2.9922]
[1737873179378,6.0643,3342.6,3342.3,2.99187]
[1737873181064,0.7543,3342.6,3342.3,2.99187]
[1737873181263,0.7543,3342.6,3342.2,2.99197]
[1737873188401,0.7543,3342.9,3342.0,1.410866]
[1737873188605,0.7543,3342.9,3342.6,2.99167]
[1737873189906,0.7543,3343.1,3342.6,2.99167]
[1737873192224,5.31,3343.2,3341.6,8.25256]
[1737873192225,3.74588,3342.8,3342.1,2.99205]
[1737873192513,0.7543,3342.6,3342.1,2.99205]
[1737873193321,0.03739653,3342.5,3341.9,2.99229]
[1737873193483,3.78342855,3342.6,3341.9,2.99229]
[1737873196726,0.822,3342.5,3341.9,2.99229]
[1737873196880,0.822,3342.3,3341.7,2.99247]
[1737873198016,0.822,3342.3,3341.5,5.99265]
[1737873198323,0.822,3342.3,3341.8,2.99239]
[1737873202334,1.211563,3342.3,3341.8,2.99239]
[1737873202490,0.822,3342.2,3341.4,2.99274]
[1737873202691,0.822,3341.9,3341.4,2.99274]
[1737873203291,3.0,3341.7,3341.1,2.993]
[1737873203517,0.822,3341.6,3340.8,2.99329]
[1737873203691,0.822,3341.6,3341.1,2.993]
[1737873208331,0.822,3341.6,3340.9,2.9932]
[1737873208540,0.822,3341.6,3341.1,2.99294]
[1737873212359,0.822,3341.6,3340.9,2.9932]
[1737873212526,0.822,3341.6,3341.2,2.99293]
[1737873216028,0.8045,3342.3,3341.1,0.8198]
[1737873216228,0.8045,3342.3,3341.7,2.9924]
[1737873216428,4.707134,3342.3,3341.5,2.99266]
[1737873218081,2.99204,3342.2,3341.5,2.99266]
[1737873218776,2.99204,3342.2,3341.6,2.99257]
[1737873222379,1.715144,3342.3,3341.7,2.99247]
[1737873222767,4.707104,3342.3,3341.7,2.99247]
[1737873223279,4.707104,3342.3,3341.5,2.99265]
[1737873223872,3.79646,3342.3,3341.5,2.99265]
[1737873224736,3.79646,3342.3,3341.7,2.99246]
[1737873231096,3.79646,3342.3,3341.5,2.99265]
[1737873231302,0.8045,3341.7,3340.9,0.8198]
[1737873231604,3.79702,3341.7,3341.1,2.99296]
[1737873232104,0.8045,3341.7,3341.1,2.99296]
[1737873232270,0.8045,3341.7,3341.2,2.9929]
[1737873232686,0.8045,3341.7,3341.1,2.99296]
[1737873234302,0.8045,3341.7,3341.3,2.99283]
[1737873238702,0.8045,3341.7,3341.1,3.292256]
[1737873238997,0.8045,3341.7,3341.1,2.99296]
[1737873239299,3.79701,3341.7,3341.1,2.99296]
[1737873239740,0.7553,3341.6,3341.1,2.99296]
[1737873246522,0.7553,3341.6,3341.3,2.99282]
[1737873247686,5.99214,3342.1,3341.4,2.99273]
[1737873247908,0.8283,3341.9,3341.3,2.99282]
[1737873248310,0.8283,3341.9,3341.6,2.99254]
[1737873248516,0.8283,3341.9,3341.6,2.99256]
[1737873248898,0.8283,3341.9,3341.6,5.98512]
[1737873249935,0.8283,3341.9,3341.6,2.99256]
[1737873250137,0.8283,3342.4,3342.0,2.99221]
[1737873250294,0.8283,3342.4,3342.1,2.99211]
[1737873252608,0.8283,3342.4,3341.9,2.9923]
[1737873262041,0.7893,3342.3,3341.4,3.77731]
[1737873262345,0.7893,3342.3,3341.7,2.99247]
[1737873264229,0.7893,3342.2,3341.7,2.99247]
[1737873266516,0.7893,3342.2,3341.8,2.99238]
[1737873266842,0.7893,3342.2,3342.0,2.99214]
[1737873268707,0.8096,3342.6,3342.0,2.99214]
[1737873268945,0.8096,3342.6,3342.1,2.99212]
[1737873273134,0.8096,3342.6,3341.3,0.8022]
[1737873273449,0.8096,3342.6,3342.3,2.99192]
[1737873274540,0.8096,3342.6,3342.1,2.99208]
[1737873276747,0.8096,3342.6,3341.8,0.7609]
[1737873277041,0.8096,3342.6,3342.2,2.99202]
[1737873279410,0.03739748,3342.5,3341.8,2.99238]
[1737873279614,0.8302,3342.3,3341.5,2.99258]
[1737873279956,0.8302,3342.2,3341.6,2.99255]
[1737873281876,0.8302,3342.0,3341.3,4.1771492]
[1737873282051,0.8302,3342.0,3341.4,2.99273]
[1737873283674,2.99222,3342.0,3341.4,2.99273]
[1737873283975,0.8302,3341.8,3341.2,2.99286]
[1737873284481,0.03740719,3341.7,3341.2,2.99286]
[1737873284656,0.8302,3341.8,3341.2,2.99286]
[1737873287483,0.8302,3341.7,3341.2,2.99286]
[1737873295575,0.8302,3341.7,3341.3,2.99282]
[1737873302107,0.8302,3341.7,3340.7,0.7609]
[1737873302402,5.31,3341.9,3341.4,2.99274]
[1737873302708,0.7709,3342.0,3341.7,2.99242]
[1737873303916,0.7709,3342.3,3341.9,2.9923]
[1737873306473,5.31,3342.4,3342.0,2.99214]
[1737873306682,5.31,3342.4,3342.1,2.99209]
[1737873307007,0.7709,3342.5,3342.1,2.99209]
[1737873307511,0.7709,3342.5,3342.2,2.99197]
[1737873307674,6.0809,3342.7,3342.3,2.99188]
[1737873309106,6.0809,3342.7,3341.8,2.99239]
[1737873309107,1.9316145,3342.6,3341.8,2.99239]
[1737873309402,0.7709,3342.3,3341.6,3.82056]
[1737873309609,0.03740274,3342.2,3341.6,2.99256]
[1737873309908,3.76286,3342.3,3341.6,2.99256]
[1737873310495,0.03740201,3342.2,3341.6,2.99256]
[1737873310711,3.76286,3342.3,3341.6,2.99256]
[1737873312107,0.7709,3342.3,3341.8,2.99237]
[1737873312411,0.7709,3342.3,3341.8,3.82037]
[1737873312613,0.7709,3342.3,3342.0,2.99221]
[1737873312811,9.208873,3342.7,3342.0,2.99221]
[1737873312812,0.7709,3342.6,3342.2,2.99204]
[1737873316007,0.8317,3342.3,3341.7,2.99242]
[1737873316573,0.8317,3342.3,3341.9,2.99224]
[1737873322211,0.8317,3342.3,3341.7,3.736605]
[1737873322417,0.8317,3342.8,3342.5,2.99177]
[1737873322620,5.00477781,3343.3,3342.5,2.99168]
[1737873322789,6.82285,3343.2,3342.5,2.99174]
[1737873323118,0.03739312,3343.1,3342.5,2.99174]
[1737873323493,0.03739312,3343.1,3342.0,0.7755]
[1737873323816,3.8317,3343.2,3342.6,2.99166]
[1737873324180,0.03739313,3343.1,3342.6,2.99166]
[1737873325692,6.8229,3343.2,3342.6,2.99166]
[1737873326404,0.8317,3343.2,3342.7,2.99156]
[1737873326609,6.0973,3343.5,3342.9,2.9914]
[1737873327295,9.08819,3343.5,3342.9,2.9914]
[1737873330227,0.7873,3343.5,3342.9,2.9914]
[1737873330816,5.31,3343.7,3343.1,2.99117]
[1737873331021,6.0973,3343.7,3343.1,2.99117]
[1737873331221,6.0973,3343.7,3343.1,3.6273706]
[1737873335584,0.7873,3343.7,3343.1,3.6273706]
[1737873337541,5.99043,3344.0,3343.5,2.99087]
[1737873337542,3.0,3344.0,3343.5,2.99087]
[1737873337751,0.8145,3344.0,3343.5,2.99087]
[1737873337909,0.8145,3344.0,3343.5,3.66922]
[1737873338927,3.8145,3344.0,3343.5,3.66922]
[1737873340209,0.8145,3344.0,3343.5,3.66922]
[1737873342811,0.8145,3344.0,3343.6,2.99078]
[1737873343834,0.8145,3344.0,3343.5,0.67835]
[1737873344136,0.8145,3344.0,3343.6,0.746189]
[1737873345242,6.1245,3344.4,3343.9,2.9905]
[1737873346438,6.1245,3344.4,3343.7,3.79224]
[1737873346439,6.1245,3344.4,3344.0,2.9904]
[1737873346606,6.75473,3344.7,3344.0,2.9904]
[1737873347008,2.98998,3344.5,3344.0,0.3792]
[1737873347726,2.99031,3344.2,3343.5,3.81887]
[1737873347927,0.7649,3344.1,3343.5,3.81887]
[1737873359956,0.7649,3344.1,3343.6,2.99075]
[1737873360929,0.7649,3344.1,3343.7,2.99067]
[1737873361221,0.8187,3344.3,3343.8,2.99054]
[1737873361713,0.8187,3344.3,3343.7,3.671624]
[1737873361917,0.8187,3344.3,3343.9,2.99048]
[1737873362814,0.8187,3344.3,3343.7,3.671624]
[1737873363015,0.8187,3344.1,3343.5,2.99085]
[1737873364525,3.80906,3344.1,3343.5,2.99085]
[1737873364689,0.8187,3344.0,3343.3,2.99105]
[1737873364887,0.8560822,3344.0,3343.4,2.99095]
[1737873368138,2.99068,3343.8,3343.0,8.25126]
[1737873368309,0.8252,3343.6,3343.0,2.99126]
[1737873368479,0.8252,3343.6,3343.0,3.668525]
[1737873371521,0.8252,3343.6,3343.1,2.99117]
[1737873373325,0.8252,3343.6,3343.2,2.99114]
[1737873381252,0.8252,3343.6,3343.0,3.668545]
[1737873383562,0.8252,3343.6,3343.1,2.99122]
[1737873384971,0.8252,3343.6,3343.0,0.677265]
[1737873385160,0.8252,3343.6,3343.2,2.99114]
[1737873402228,0.8145,3343.9,3343.3,2.99105]
[1737873402436,0.8145,3343.9,3343.6,2.99072]
[1737873402581,0.8145,3343.9,3343.7,2.99067]
[1737873404877,0.8145,3343.9,3343.5,2.99087]
[1737873409042,0.8145,3343.9,3343.6,2.99077]
[1737873412020,0.8145,3344.1,3343.6,2.99077]
[1737873412716,5.31,3344.3,3343.7,2.99069]
[1737873412887,0.8145,3344.4,3343.9,2.9905]
[1737873413212,0.8145,3344.4,3343.6,1.399672]
[1737873413418,0.8145,3344.4,3344.0,2.99043]
[1737873413775,0.8145,3344.4,3344.1,2.99026]
[1737873413970,8.29977,3344.8,3344.0,2.99043]
[1737873413971,0.7924,3344.7,3344.2,2.99022]
[1737873415283,3.78221,3344.7,3344.0,3.76293]
[1737873415818,3.02726635,3344.6,3344.0,2.99043]
[1737873415987,0.7924,3344.5,3344.0,2.99043]
[1737873417237,0.7924,3344.4,3343.5,2.99085]
[1737873417532,2.99025,3344.2,3343.5,2.99085]
[1737873417686,3.02763063,3344.2,3343.5,2.99085]
[1737873417882,2.99025,3344.2,3343.5,2.99085]
[1737873418314,3.02763062,3344.2,3343.5,2.99085]
[1737873418496,0.7924,3344.1,3343.5,2.99085]
[1737873419343,3.78276,3344.1,3343.5,2.99085]
[1737873419495,3.78276,3344.1,3343.3,2.99105]
[1737873419496,0.7924,3343.9,3343.3,2.99105]
[1737873419695,0.03738465,3343.8,3343.1,9.02371]
[1737873419895,0.03738465,3343.8,3343.1,8.25121]
[1737873419896,0.7924,3343.7,3343.1,8.25121]
[1737873420175,0.7924,3343.7,3343.1,2.99121]
[1737873423597,0.82978633,3343.7,3343.1,2.99121]
[1737873423793,2.9908,3343.6,3342.9,2.99139]
[1737873424000,0.7924,3343.4,3342.9,2.99139]
[1737873424699,3.02844915,3343.3,3342.7,2.99157]
[1737873424896,0.7924,3343.2,3342.7,2.99157]
[1737873426248,0.03739159,3343.1,3342.5,2.99175]
[1737873426545,0.7924,3343.0,3342.5,2.99175]
[1737873428914,0.7924,3343.0,3342.7,2.99157]
[1737873431505,0.7924,3343.0,3342.5,2.99176]
[1737873432554,0.7924,3342.8,3342.0,3.76468]
[1737873432709,0.7924,3342.6,3342.1,2.99204]
[1737873433406,0.7924,3342.6,3342.3,2.99194]
[1737873433835,0.7924,3342.8,3342.3,0.598404]
[1737873434047,0.7903,3343.1,3342.7,2.99157]
[1737873434243,0.7903,3343.1,3342.5,2.99175]
[1737873438088,0.7903,3342.9,3342.3,2.99194]
[1737873438296,0.7903,3342.7,3342.1,2.9921]
[1737873438495,0.7903,3342.7,3342.2,2.99203]
[1737873440552,0.82769699,3342.7,3342.2,2.99203]
[1737873440991,0.7903,3342.7,3342.3,2.99194]
[1737873456165,0.7695,3343.0,3342.7,2.99152]
[1737873456371,0.7695,3343.0,3342.7,2.99155]
[1737873456974,0.7695,3343.0,3342.9,2.99141]
[1737873460877,0.7695,3343.0,3342.7,2.99155]
[1737873461558,0.7608,3343.3,3342.9,2.99135]
[1737873462361,0.03738984,3343.2,3342.7,2.99155]
[1737873462608,0.7608,3343.2,3342.7,2.99155]
[1737873464615,4.73006114,3343.2,3342.5,2.99174]
[1737873464907,3.7522,3343.0,3342.2,2.99198]
[1737873465110,0.7608,3342.9,3342.2,2.99198]
[1737873466271,0.7608,3342.9,3342.1,2.99211]
[1737873466468,0.7608,3342.9,3342.5,2.99175]
[1737873472241,0.7608,3342.9,3342.6,2.99168]
[1737873473227,0.7998,3343.2,3342.9,2.99134]
[1737873476245,0.7998,3343.2,3342.6,2.99165]
[1737873476448,0.7695,3343.0,3342.4,2.99184]
[1737873478357,0.7695,3342.9,3342.4,2.99184]
[1737873479560,0.7695,3342.9,3342.5,2.99176]
[1737873480111,0.7695,3342.9,3342.6,2.99166]
[1737873480545,0.7695,3342.9,3342.5,2.99176]
[1737873484682,0.7695,3342.9,3342.6,2.99167]
[1737873492489,0.7695,3342.9,3342.7,2.99155]
[1737873492650,0.7695,3342.9,3342.8,2.9915]
[1737873492851,0.7695,3343.3,3342.8,2.9915]
[1737873494258,0.7695,3343.3,3342.9,2.99135]
[1737873494666,0.7695,3343.3,3343.0,2.99132]
[1737873495084,5.31,3343.4,3343.0,2.99132]
[1737873495749,5.31,3343.4,3343.2,2.99114]
[1737873496091,0.8011,3343.5,3343.2,2.99114]
[1737873497281,0.8011,3343.3,3342.3,2.99194]
[1737873497596,0.8011,3342.9,3342.3,2.99194]
[1737873499219,0.0373958,3342.8,3342.1,2.99211]
[1737873499415,0.8011,3342.7,3342.1,2.99211]
[1737873500566,0.03739801,3342.6,3342.1,2.99211]
[1737873501413,0.03739808,3342.6,3342.1,2.99211]
[1737873502309,0.83849823,3342.7,3342.1,2.99211]
[1737873503489,3.83009823,3342.7,3342.1,2.99211]
[1737873504113,3.7927,3342.7,3342.1,2.99211]
[1737873504672,0.8011,3342.7,3342.1,2.99211]
[1737873505502,0.83850034,3342.7,3342.1,2.99211]
[1737873505901,0.83850034,3342.7,3341.7,2.99241]
[1737873505902,0.8011,3342.6,3341.7,2.99241]
[1737873506105,1.25053937,3342.7,3341.7,2.99241]
[1737873506106,0.8011,3342.2,3341.7,2.99241]
[1737873506431,0.03740336,3342.1,3341.7,2.99241]
[1737873506987,0.8011,3342.1,3341.5,2.99266]
[1737873507187,1.51701768,3342.1,3341.5,2.99266]
[1737873507931,0.8011,3342.0,3341.5,2.99266]
[1737873508433,0.8011,3342.0,3341.6,2.99256]
[1737873512017,0.8011,3342.0,3341.7,2.99245]
[1737873516749,0.7685,3342.4,3341.7,2.99245]
[1737873516959,0.7685,3342.4,3342.0,2.99215]
[1737873518414,2.10057217,3342.4,3342.0,2.99215]
[1737873518756,0.0374027,3342.3,3342.0,2.99215]
[1737873519329,2.10057217,3342.4,3342.0,2.99215]
[1737873519538,2.13797486,3342.4,3342.0,2.99215]
[1737873520917,2.10057217,3342.4,3342.0,2.99215]
[1737873521118,0.7685,3342.4,3341.6,0.7569]
[1737873521319,0.7685,3342.4,3342.1,2.99204]
[1737873523266,0.7685,3342.4,3341.9,2.9923]
[1737873523567,0.80590267,3342.4,3341.9,2.9923]
[1737873526477,0.7685,3342.4,3341.9,2.9923]
[1737873527969,0.80590266,3342.4,3341.9,2.9923]
[1737873530166,0.7685,3342.4,3341.9,2.9923]
[1737873533286,0.80590266,3342.4,3341.9,2.9923]
[1737873533783,0.7685,3342.4,3341.9,2.9923]
[1737873536189,0.7685,3342.4,3341.7,2.99246]
[1737873536351,3.79776264,3342.4,3341.7,2.99246]
[1737873537673,3.76036,3342.4,3341.8,2.99238]
[1737873537874,0.7685,3342.4,3341.6,3.74946]
[1737873538186,0.7685,3342.4,3341.8,2.99234]